{"text_format":"1","workbook":"xlsx","n_sheets":2,"sheets":["Tabelle1","Tabelle2"],"not_rendered":{"charts":0,"images":1,"macros":1,"external_links":0,"defined_names":19,"comments":0,"pivot_tables":0},"unopened":[],"bounds":{"document_bytes":16777216,"sheet_cells":100000,"rows_first":2000,"rows_last":500,"rows_between":2000,"halvings":0,"cell_chars":16384,"cell_head_chars":4096},"cells_cut":0,"cells_raw":0,"read":"whole","date_system":"1900"}

{"sheet":"Tabelle1","index":0,"n_rows":24,"n_cols":6,"rows_kept":24,"cut":false,"hidden":false,"merged":[]}
[]
[null,null,null,null,null,"9 x 1500 mm, 8 x 600 mm, 8 x 220 mm, 30 x 630 mm, 2 x 430 mm, 13 x 390 mm"]
[]
[null,null,"Lattenlänge","Verlust"]
[null,null,2000,5]
[null,null,"Anzahl","Länge"]
[null,null,9,1500,{"$f":"IF(C7=0,\"\",C7*D7)","v":13500}]
[null,null,30,630,{"$f":"IF(C8=0,\"\",C8*D8)","v":18900}]
[null,null,8,600,4800]
[null,null,2,430,860]
[null,null,13,390,5070]
[null,null,8,220,1760]
[null,null,65,95,6175]
[null,null,null,null,""]
[null,null,null,null,""]
[null,null,null,null,""]
[]
[]
[]
[]
[]
[]
[null,null,null,"Summe",{"$f":"SUM(E7:E22)","v":51065}]
[null,null,null,"theor. Anzahl ideal",{"$f":"E23/C5","v":25.532499999999999}]

{"sheet":"Tabelle2","index":1,"n_rows":42,"n_cols":22,"rows_kept":42,"cut":false,"hidden":false,"merged":[]}
["Zuschnitt","Zuschnitt","Zuschnitt","Zuschnitt","Zuschnitt","Zuschnitt","Zuschnitt","Zuschnitt","Zuschnitt","Zuschnitt","Zuschnitt","Zuschnitt","Zuschnitt","Zuschnitt","Zuschnitt","Zuschnitt","Zuschnitt","Zuschnitt","Zuschnitt","Zuschnitt","Summe","Latte Nr"]
[1500,430,null,null,null,null,null,null,null,null,null,null,null,null,null,null,null,null,null,null,{"$f":"IF(A2=\"\",\"\",SUM(A2:T2)+(COUNTA(A2:T2)-1)*Tabelle1!$D$5)","v":1935},{"$f":"IF(U2=\"\",\"\",ROW()-1)","v":1}]
[1500,430,null,null,null,null,null,null,null,null,null,null,null,null,null,null,null,null,null,null,{"$f":"IF(A3=\"\",\"\",SUM(A3:T3)+(COUNTA(A3:T3)-1)*Tabelle1!$D$5)","v":1935},{"$f":"IF(U3=\"\",\"\",ROW()-1)","v":2}]
[1500,390,95,null,null,null,null,null,null,null,null,null,null,null,null,null,null,null,null,null,{"$f":"IF(A4=\"\",\"\",SUM(A4:T4)+(COUNTA(A4:T4)-1)*Tabelle1!$D$5)","v":1995},3]
[1500,390,95,null,null,null,null,null,null,null,null,null,null,null,null,null,null,null,null,null,{"$f":"IF(A5=\"\",\"\",SUM(A5:T5)+(COUNTA(A5:T5)-1)*Tabelle1!$D$5)","v":1995},4]
[1500,390,95,null,null,null,null,null,null,null,null,null,null,null,null,null,null,null,null,null,{"$f":"IF(A6=\"\",\"\",SUM(A6:T6)+(COUNTA(A6:T6)-1)*Tabelle1!$D$5)","v":1995},5]
[1500,390,95,null,null,null,null,null,null,null,null,null,null,null,null,null,null,null,null,null,{"$f":"IF(A7=\"\",\"\",SUM(A7:T7)+(COUNTA(A7:T7)-1)*Tabelle1!$D$5)","v":1995},6]
[1500,390,95,null,null,null,null,null,null,null,null,null,null,null,null,null,null,null,null,null,{"$f":"IF(A8=\"\",\"\",SUM(A8:T8)+(COUNTA(A8:T8)-1)*Tabelle1!$D$5)","v":1995},7]
[1500,390,95,null,null,null,null,null,null,null,null,null,null,null,null,null,null,null,null,null,{"$f":"IF(A9=\"\",\"\",SUM(A9:T9)+(COUNTA(A9:T9)-1)*Tabelle1!$D$5)","v":1995},8]
[1500,390,95,null,null,null,null,null,null,null,null,null,null,null,null,null,null,null,null,null,{"$f":"IF(A10=\"\",\"\",SUM(A10:T10)+(COUNTA(A10:T10)-1)*Tabelle1!$D$5)","v":1995},9]
[630,630,630,95,null,null,null,null,null,null,null,null,null,null,null,null,null,null,null,null,{"$f":"IF(A11=\"\",\"\",SUM(A11:T11)+(COUNTA(A11:T11)-1)*Tabelle1!$D$5)","v":2000},10]
[630,630,630,95,null,null,null,null,null,null,null,null,null,null,null,null,null,null,null,null,{"$f":"IF(A12=\"\",\"\",SUM(A12:T12)+(COUNTA(A12:T12)-1)*Tabelle1!$D$5)","v":2000},11]
[630,630,630,95,null,null,null,null,null,null,null,null,null,null,null,null,null,null,null,null,{"$f":"IF(A13=\"\",\"\",SUM(A13:T13)+(COUNTA(A13:T13)-1)*Tabelle1!$D$5)","v":2000},12]
[630,630,630,95,null,null,null,null,null,null,null,null,null,null,null,null,null,null,null,null,{"$f":"IF(A14=\"\",\"\",SUM(A14:T14)+(COUNTA(A14:T14)-1)*Tabelle1!$D$5)","v":2000},13]
[630,630,630,95,null,null,null,null,null,null,null,null,null,null,null,null,null,null,null,null,{"$f":"IF(A15=\"\",\"\",SUM(A15:T15)+(COUNTA(A15:T15)-1)*Tabelle1!$D$5)","v":2000},14]
[630,630,630,95,null,null,null,null,null,null,null,null,null,null,null,null,null,null,null,null,{"$f":"IF(A16=\"\",\"\",SUM(A16:T16)+(COUNTA(A16:T16)-1)*Tabelle1!$D$5)","v":2000},15]
[630,630,630,95,null,null,null,null,null,null,null,null,null,null,null,null,null,null,null,null,{"$f":"IF(A17=\"\",\"\",SUM(A17:T17)+(COUNTA(A17:T17)-1)*Tabelle1!$D$5)","v":2000},16]
[630,630,630,95,null,null,null,null,null,null,null,null,null,null,null,null,null,null,null,null,{"$f":"IF(A18=\"\",\"\",SUM(A18:T18)+(COUNTA(A18:T18)-1)*Tabelle1!$D$5)","v":2000},17]
[630,630,630,95,null,null,null,null,null,null,null,null,null,null,null,null,null,null,null,null,{"$f":"IF(A19=\"\",\"\",SUM(A19:T19)+(COUNTA(A19:T19)-1)*Tabelle1!$D$5)","v":2000},18]
[630,630,630,95,null,null,null,null,null,null,null,null,null,null,null,null,null,null,null,null,{"$f":"IF(A20=\"\",\"\",SUM(A20:T20)+(COUNTA(A20:T20)-1)*Tabelle1!$D$5)","v":2000},19]
[600,600,600,95,null,null,null,null,null,null,null,null,null,null,null,null,null,null,null,null,{"$f":"IF(A21=\"\",\"\",SUM(A21:T21)+(COUNTA(A21:T21)-1)*Tabelle1!$D$5)","v":1910},20]
[600,600,600,95,null,null,null,null,null,null,null,null,null,null,null,null,null,null,null,null,{"$f":"IF(A22=\"\",\"\",SUM(A22:T22)+(COUNTA(A22:T22)-1)*Tabelle1!$D$5)","v":1910},21]
[600,600,390,390,null,null,null,null,null,null,null,null,null,null,null,null,null,null,null,null,{"$f":"IF(A23=\"\",\"\",SUM(A23:T23)+(COUNTA(A23:T23)-1)*Tabelle1!$D$5)","v":1995},22]
[390,390,390,390,220,95,95,null,null,null,null,null,null,null,null,null,null,null,null,null,{"$f":"IF(A24=\"\",\"\",SUM(A24:T24)+(COUNTA(A24:T24)-1)*Tabelle1!$D$5)","v":2000},23]
[220,220,220,220,220,220,220,95,95,95,95,null,null,null,null,null,null,null,null,null,{"$f":"IF(A25=\"\",\"\",SUM(A25:T25)+(COUNTA(A25:T25)-1)*Tabelle1!$D$5)","v":1970},24]
[95,95,95,95,95,95,95,95,95,95,95,95,95,95,95,95,95,95,95,95,{"$f":"IF(A26=\"\",\"\",SUM(A26:T26)+(COUNTA(A26:T26)-1)*Tabelle1!$D$5)","v":1995},25]
[95,95,95,95,95,95,95,95,95,95,95,95,95,95,95,95,95,95,95,95,{"$f":"IF(A27=\"\",\"\",SUM(A27:T27)+(COUNTA(A27:T27)-1)*Tabelle1!$D$5)","v":1995},26]
[null,null,null,null,null,null,null,null,null,null,null,null,null,null,null,null,null,null,null,null,{"$f":"IF(A28=\"\",\"\",SUM(A28:T28)+(COUNTA(A28:T28)-1)*Tabelle1!$D$5)","v":""},""]
[null,null,null,null,null,null,null,null,null,null,null,null,null,null,null,null,null,null,null,null,{"$f":"IF(A29=\"\",\"\",SUM(A29:T29)+(COUNTA(A29:T29)-1)*Tabelle1!$D$5)","v":""},""]
[null,null,null,null,null,null,null,null,null,null,null,null,null,null,null,null,null,null,null,null,{"$f":"IF(A30=\"\",\"\",SUM(A30:T30)+(COUNTA(A30:T30)-1)*Tabelle1!$D$5)","v":""},""]
[null,null,null,null,null,null,null,null,null,null,null,null,null,null,null,null,null,null,null,null,{"$f":"IF(A31=\"\",\"\",SUM(A31:T31)+(COUNTA(A31:T31)-1)*Tabelle1!$D$5)","v":""},""]
[null,null,null,null,null,null,null,null,null,null,null,null,null,null,null,null,null,null,null,null,{"$f":"IF(A32=\"\",\"\",SUM(A32:T32)+(COUNTA(A32:T32)-1)*Tabelle1!$D$5)","v":""},""]
[null,null,null,null,null,null,null,null,null,null,null,null,null,null,null,null,null,null,null,null,{"$f":"IF(A33=\"\",\"\",SUM(A33:T33)+(COUNTA(A33:T33)-1)*Tabelle1!$D$5)","v":""},""]
[null,null,null,null,null,null,null,null,null,null,null,null,null,null,null,null,null,null,null,null,{"$f":"IF(A34=\"\",\"\",SUM(A34:T34)+(COUNTA(A34:T34)-1)*Tabelle1!$D$5)","v":""},""]
[null,null,null,null,null,null,null,null,null,null,null,null,null,null,null,null,null,null,null,null,{"$f":"IF(A35=\"\",\"\",SUM(A35:T35)+(COUNTA(A35:T35)-1)*Tabelle1!$D$5)","v":""}]
[null,null,null,null,null,null,null,null,null,null,null,null,null,null,null,null,null,null,null,null,{"$f":"IF(A36=\"\",\"\",SUM(A36:T36)+(COUNTA(A36:T36)-1)*Tabelle1!$D$5)","v":""}]
[null,null,null,null,null,null,null,null,null,null,null,null,null,null,null,null,null,null,null,null,{"$f":"IF(A37=\"\",\"\",SUM(A37:T37)+(COUNTA(A37:T37)-1)*Tabelle1!D40)","v":""}]
[null,null,null,null,null,null,null,null,null,null,null,null,null,null,null,null,null,null,null,null,{"$f":"IF(A38=\"\",\"\",SUM(A38:T38)+(COUNTA(A38:T38)-1)*Tabelle1!D41)","v":""}]
[null,null,null,null,null,null,null,null,null,null,null,null,null,null,null,null,null,null,null,null,{"$f":"IF(A39=\"\",\"\",SUM(A39:T39)+(COUNTA(A39:T39)-1)*Tabelle1!D42)","v":""}]
[null,null,null,null,null,null,null,null,null,null,null,null,null,null,null,null,null,null,null,null,{"$f":"IF(A40=\"\",\"\",SUM(A40:T40)+(COUNTA(A40:T40)-1)*Tabelle1!D43)","v":""}]
[null,null,null,null,null,null,null,null,null,null,null,null,null,null,null,null,null,null,null,null,{"$f":"IF(A41=\"\",\"\",SUM(A41:T41)+(COUNTA(A41:T41)-1)*Tabelle1!D44)","v":""}]
[null,null,null,null,null,null,null,null,null,null,null,null,null,null,null,null,null,null,null,null,{"$f":"IF(A42=\"\",\"\",SUM(A42:T42)+(COUNTA(A42:T42)-1)*Tabelle1!D45)","v":""}]